[Event "Fagernes Chess GM-Swiss 2024"]
[Site "Fagernes"]
[Date "2024.03.27"]
[Round "5.1"]
[White "Ganguly, Surya Shekhar"]
[Black "Gorshtein, Ido"]
[Result "1/2-1/2"]
[ECO "D45"]
[WhiteElo "2574"]
[BlackElo "2539"]
[Annotator "TA"]
[PlyCount "119"]
[EventDate "2024.03.25"]
[EventType "swiss"]
[EventCountry "NOR"]
[SourceTitle "playchess.com"]
[Source "ChessBase"]
[SourceQuality "1"]
[TimeControl "40/6000+30:2400+30"]

{[%evp 16,119,0,0,0,0,0,0,33,0,0,0,0,0,0,0,0,0,0,0,0,0,0,0,0,0,0,-5,67,82,79,64,86,50,131,112,135,104,129,118,95,117,134,114,114,116,112,71,73,81,72,62,72,87,66,51,48,46,48,51,58,60,64,60,59,38,47,50,52,18,29,16,70,10,70,29,36,53,41,47,31,31,39,39,48,8,8,8,8,8,8,8,8,8,8,8,8,8,8,8,13,0,7,0,0,0]} 1. c4 {[%emt 0:00:10]} c6 {[%emt 0:01:08]} 2. Nf3 {[%emt 0:00:20]} d5 {[%emt 0:00:07]} 3. e3 {[%emt 0:00:07]} Nf6 {[%emt 0:00:06]} 4. Nc3 {[%emt 0:00:05]} Nbd7 {[%emt 0:01:22]} 5. Qc2 {[%emt 0:00:35]} e6 {[%emt 0:02:28]} 6. b3 {[%emt 0:00:08]} Bd6 {[%emt 0:00:11]} 7. Bb2 {[%emt 0:00:07]} O-O {[%emt 0:00:46]} 8. Be2 {[%emt 0:00:05][%cal Bf1e2,Be2d3,Bd3f5][%mdl 32]} Re8 {[%emt 0:01:33]} 9. d4 {[%emt 0:00:12]} b6 {[%emt 0:01:01]} 10. O-O {[%emt 0:00:07]} Bb7 {[%emt 0:00:04]} 11. a4 {[%emt 0:00:06]} a6 {[%emt 0:07:24]} 12. Bd3 {[%emt 0:02:03][%cal Oa4a5]} c5 {[%emt 0:02:51]} 13. cxd5 $1 {[%emt 0:10:32]} exd5 {[%emt 0:00:12]} 14. Rfd1 {[%emt 0:00:39]} Rc8 {[%emt 0:06:06]} 15. Qe2 {[%emt 0:01:21]} cxd4 {[%emt 0:01:28]} 16. Nxd4 {[%emt 0:00:16]} Nc5 {[%emt 0:00:08]} 17. Bf5 {[%emt 0:02:54]} Rc7 {[%emt 0:02:20]} 18. b4 {[%emt 0:10:36]} Ne6 {[%emt 0:04:34]} 19. Na2 $1 {[%emt 0:01:35]} Nf4 {[%emt 0:09:43]} 20. Qf1 {[%emt 0:03:01]} Ng6 {[%emt 0:00:43]} 21. Bd3 {[%emt 0:08:08][%cal Oh2h3]} a5 {[%emt 0:13:18]} (21... Ne5 $11) 22. bxa5 {[%emt 0:02:16]} bxa5 {[%emt 0:00:07]} 23. h3 {[%emt 0:01:11]} Rc8 {[%emt 0:04:53]} 24. Rac1 {[%emt 0:03:39]} Ne5 {[%emt 0:02:33]} (24... Bb8 $14) 25. Bb5 $16 {[%emt 0:01:25]} Rxc1 {[%emt 0:09:43]} 26. Rxc1 {[%emt 0:00:40]} Nfd7 {[%emt 0:01:55]} 27. Nf5 {[%emt 0:05:18]} Bf8 {[%emt 0:00:54]} 28. Qd1 {[%emt 0:01:24] White has more active pieces.} g6 {[%emt 0:02:35]} 29. Ng3 {[%emt 0:00:45]} Bg7 {[%emt 0:01:36][%cal Oe5f3]} 30. Bd4 {[%emt 0:00:25] f4 is the strong threat.} Re6 {[%emt 0:07:44]} 31. f4 {[%emt 0:07:18]} Nc6 {[%emt 0:02:31][%cal Be5c6,Bc6d8,Bd8e6][%mdl 32]} 32. Bxg7 {[%emt 0:00:07]} Kxg7 {[%emt 0:00:05]} 33. Qxd5 {[%emt 0:00:11][%cal Rb5c6]} Nf6 {[%emt 0:05:57]} 34. Qxd8 {[%emt 0:00:38]} Nxd8 {[%emt 0:00:02]} 35. Kf2 {[%emt 0:04:46]} Rd6 {[%emt 0:00:38] [#] And now ...Rd2+ would win.} 36. Nc3 {[%emt 0:04:35]} Rd2+ {[%emt 0:00:10]} 37. Nge2 {[%emt 0:00:40][%cal Oe3e4]} Ne6 {[%emt 0:00:25]} 38. Ke1 {[%emt 0:02:22]} Rd8 {[%emt 0:09:26]} 39. g4 {[%emt 0:01:34]} h6 {[%emt 0:00:04]} 40. Nd1 {[%emt 0:07:53]} Bg2 {[%emt 0:02:55]} 41. Ng1 {[%emt 0:43:27]} Ba8 {[%emt 0:45:19]} 42. Be2 {[%emt 0:09:21]} Ne4 {[%emt 0:00:00]} 43. Nf3 {[%emt 0:00:00]} N6c5 {[%emt 0:00:00]} (43... g5 $11) 44. Nd4 {[%emt 0:00:00]} (44. Ne5 $14) 44... Rc8 {[%emt 0:00:00]} (44... Rb8 $1 $11) 45. Nb3 {[%emt 0:00:00]} Bd5 {[%emt 0:00:00]} 46. Nxc5 {[%emt 0:00:00]} ({And not} 46. Nxa5 Nd3+ 47. Bxd3 Rxc1 48. Bxe4 Bxe4 $17) 46... Rxc5 {[%emt 0:00:00]} 47. Rxc5 {[%emt 0:00:00]} Nxc5 $14 {[%emt 0:00:00][%mdl 4096] Endgame. KBN-KBN} 48. Nc3 {[%emt 0:00:00]} Bb3 {[%emt 0:00:00]} 49. Bd1 {[%emt 0:00:00]} Be6 {[%emt 0:00:00]} 50. h4 {[%emt 0:00:00]} g5 {[%emt 0:00:00] The position is equal.} 51. hxg5 {[%emt 0:00:00]} hxg5 {[%emt 0:00:00]} 52. Kf2 {[%emt 0:00:00]} Bd7 {[%emt 0:00:00]} 53. Kg3 {[%emt 0:00:00]} f6 {[%emt 0:00:00]} 54. Kf3 {[%emt 0:00:00]} Bc6+ {[%emt 0:00:00]} 55. e4 {[%emt 0:00:00] White wants to play f5.} gxf4 {[%emt 0:01:37]} 56. Kxf4 {[%emt 0:00:00]} Ne6+ {[%emt 0:00:07]} 57. Ke3 {[%emt 0:00:00]} Kh6 {[%emt 0:00:06]} 58. Kd3 {[%emt 0:00:00]} Kg5 {[%emt 0:00:08]} 59. Kc4 {[%emt 0:00:00]} Kf4 {[%emt 0:00:19]} 60. Nd5+ {[%emt 0:00:00] Weighted Error Value: White=0.10 (very precise) /Black=0.11 (very precise) .  Mistake:       	White=1     	Black=4      Inaccurate:     	White=6     	Black=1      OK:         	White=17    	Black=24     Best:        	White=1     	Black=2      Strong:       	White=2     	---} 1/2-1/2

[Event "Fagernes Chess GM-Swiss 2024"]
[Site "Fagernes"]
[Date "2024.03.27"]
[Round "5.2"]
[White "Jumabayev, Rinat"]
[Black "Sidhant, Mohapatra"]
[Result "1/2-1/2"]
[ECO "D12"]
[WhiteElo "2598"]
[BlackElo "2379"]
[Annotator "TA"]
[PlyCount "44"]
[EventDate "2024.03.25"]
[EventType "swiss"]
[EventCountry "NOR"]
[SourceTitle "playchess.com"]
[Source "ChessBase"]
[SourceQuality "1"]
[TimeControl "40/6000+30:2400+30"]

{[%evp 12,44,35,21,25,15,46,43,43,27,37,16,13,25,34,27,26,16,18,-7,-9,-2,27,30,37,0,12,12,11,-5,0,0,0,0,0]} 1. Nf3 {[%emt 0:00:48]} d5 {[%emt 0:09:31]} 2. d4 {[%emt 0:05:10]} Nf6 {[%emt 0:00:33]} 3. c4 {[%emt 0:00:05]} c6 {[%emt 0:00:43]} 4. e3 {[%emt 0:00:04]} Bf5 {[%emt 0:01:00]} 5. Nc3 {[%emt 0:00:07]} e6 {[%emt 0:00:06]} 6. Nh4 {[%emt 0:00:11]} Be4 {[%emt 0:00:43]} 7. f3 {[%emt 0:00:28]} Bg6 {[%emt 0:00:05]} 8. Bd2 {[%emt 0:02:24]} a5 {[%emt 0:06:57]} 9. Nxg6 {[%emt 0:02:15]} hxg6 {[%emt 0:00:09] White is slightly better.} 10. Qc2 {[%emt 0:10:48]} Be7 {[%emt 0:08:12]} 11. Bd3 {[%emt 0:06:42]} Nbd7 {[%emt 0:10:28]} 12. cxd5 {[%emt 0:25:08]} Nxd5 {[%emt 0:04:16]} 13. Nxd5 {[%emt 0:00:38]} exd5 {[%emt 0:00:15]} 14. O-O-O {[%emt 0:01:55]} Qb6 {[%emt 0:04:56]} 15. e4 {[%emt 0:09:02]} dxe4 {[%emt 0:02:09]} 16. Bxe4 {[%emt 0:04:05]} f5 {[%emt 0:13:41]} 17. Bd3 {[%emt 0:03:08]} O-O-O $1 {[%emt 0:14:58][%cal Oe7f6]} 18. Qa4 {[%emt 0:14:53]} Bb4 {[%emt 0:00:00] The position is equal.} 19. Bg5 {[%emt 0:00:09]} Nf6 {[%emt 0:00:00]} 20. a3 {[%emt 0:00:43]} Bd6 {[%emt 0:00:00]} 21. Bc4 {[%emt 0:06:19]} Kb8 {[%emt 0:00:00]} 22. h4 {[%emt 0:01:52]} Qc7 {[%emt 0:00:00] Weighted Error Value: White=0.10 (very precise) /Black=0.06 (flawless) .  Inaccurate:     	---       	Black=2      OK:         	White=4     	Black=4      Strong:       	---       	Black=1} 1/2-1/2

[Event "Fagernes Chess GM-Swiss 2024"]
[Site "Fagernes"]
[Date "2024.03.27"]
[Round "5.3"]
[White "Ingebretsen, Jens E"]
[Black "Urkedal, Frode Olav Olsen"]
[Result "1/2-1/2"]
[ECO "A20"]
[WhiteElo "2402"]
[BlackElo "2536"]
[Annotator "TA"]
[PlyCount "43"]
[EventDate "2024.03.25"]
[EventType "swiss"]
[EventCountry "NOR"]
[SourceTitle "playchess.com"]
[Source "ChessBase"]
[SourceQuality "1"]
[TimeControl "40/6000+30:2400+30"]

{[%evp 10,43,16,0,35,20,47,4,-3,-4,10,10,7,18,6,7,10,0,20,18,27,22,61,46,72,78,59,68,56,67,97,71,57,37,45,12]} 1. c4 {[%emt 0:00:11]} e5 {[%emt 0:00:38]} 2. g3 {[%emt 0:00:31]} c6 {[%emt 0:02:07]} 3. Nf3 {[%emt 0:01:24]} e4 {[%emt 0:01:09]} 4. Nd4 {[%emt 0:00:02]} d5 {[%emt 0:00:29]} 5. cxd5 {[%emt 0:00:59]} Qxd5 {[%emt 0:00:05]} 6. e3 {[%emt 0:00:05]} Nf6 {[%emt 0:00:25]} 7. Bg2 {[%emt 0:00:48]} Qe5 {[%emt 0:02:56]} 8. Nc3 {[%emt 0:01:35]} Bc5 {[%emt 0:06:29] The position is equal.} 9. d3 {[%emt 0:07:00]} (9. O-O {seems wilder.} O-O 10. d3 exd3 11. Qxd3 Rd8 12. Nf3) 9... exd3 {[%emt 0:11:11]} 10. Qxd3 {[%emt 0:00:31]} Bxd4 {[%emt 0:02:48]} 11. Qxd4 {[%emt 0:00:07]} Qxd4 {[%emt 0:00:04]} 12. exd4 {[%emt 0:00:05]} Be6 {[%emt 0:00:05]} 13. Bg5 {[%emt 0:19:19]} Nd5 {[%emt 0:04:20]} 14. O-O {[%emt 0:10:50]} h6 {[%emt 0:06:10]} 15. Nxd5 {[%emt 0:01:58]} Bxd5 {[%emt 0:20:20] Black is weak on the dark squares} 16. Rfe1+ {[%emt 0:04:13]} Kd7 {[%emt 0:03:14][%cal Be8d7,Bd7e7,Be7f7][%mdl 32] [#]} 17. Bh3+ $1 {[%emt 0:02:21] A strong pair of Bishops.} (17. Bxd5 cxd5 18. Bd2 (18. Re7+ Kd6 $15) 18... Nc6 $11) 17... Be6 {[%emt 0:00:37]} 18. Bxe6+ {[%emt 0:00:51]} fxe6 {[%emt 0:00:06]} 19. Bf4 {[%emt 0:00:26]} Ke7 {[%emt 0:05:25]} 20. Re4 {[%emt 0:04:58] Rae1 is the strong threat. White is much more active. The black rooks are passive.} Kf7 {[%emt 0:00:23]} 21. Rae1 {[%emt 0:06:05]} Re8 {[%emt 0:00:10]} 22. Bxb8 {[%emt 0:06:03] Weighted Error Value: White=0.07 (flawless) /Black=0.12 (very precise) .  Inaccurate:     	White=2     	Black=3      OK:         	White=7     	Black=5      Best:        	---       	Black=1      Strong:       	White=1     	---} 1/2-1/2

[Event "Fagernes Chess GM-Swiss 2024"]
[Site "Fagernes"]
[Date "2024.03.27"]
[Round "5.5"]
[White "Ghasi, Ameet K"]
[Black "Sasikiran, Krishnan"]
[Result "1/2-1/2"]
[ECO "D11"]
[WhiteElo "2485"]
[BlackElo "2578"]
[Annotator "TA"]
[PlyCount "92"]
[EventDate "2024.03.25"]
[EventType "swiss"]
[EventCountry "NOR"]
[SourceTitle "playchess.com"]
[Source "ChessBase"]
[SourceQuality "1"]
[TimeControl "40/6000+30:2400+30"]

{[%evp 17,92,13,29,25,22,19,22,22,25,11,24,0,0,0,0,0,0,0,0,0,0,-39,-46,-38,-34,-44,-36,-121,-105,-114,-116,-121,-101,-139,-159,-143,-146,-228,-222,-217,-208,-206,-171,-158,-152,-209,-212,-218,-207,-195,-186,-388,-402,-390,-407,-392,-400,-424,-422,-1084,-491,-512,-512,-476,-392,-342,-202,-411,-442,-489,-154,-153,-239,-164,-151,-202,-218]} 1. Nf3 {[%emt 0:02:47]} d5 {[%emt 0:00:30]} 2. g3 {[%emt 0:00:04]} Nf6 {[%emt 0:00:42]} 3. Bg2 {[%emt 0:00:09]} c6 {[%emt 0:00:07]} 4. O-O {[%emt 0:00:08]} Bg4 {[%emt 0:00:18]} 5. d4 {[%emt 0:00:57]} Nbd7 {[%emt 0:01:59]} 6. h3 {[%emt 0:09:13]} Bh5 {[%emt 0:01:41]} 7. c4 {[%emt 0:02:42]} e6 {[%emt 0:00:28]} 8. Qb3 {[%emt 0:00:25]} Qb6 {[%emt 0:00:29]} 9. Nc3 {[%emt 0:03:27]} Be7 {[%emt 0:02:47]} 10. Nh4 {[%emt 0:01:36]} O-O {[%emt 0:08:14]} 11. g4 {[%emt 0:13:02]} Bg6 {[%emt 0:04:09]} (11... Qxd4 $2 12. Nf3 (12. Qxb7 Qxc4 13. Rd1 a5 $17) 12... Qxc4 13. Qxc4 (13. gxh5 Qxb3 14. axb3 Nxh5 $18) 13... dxc4 14. gxh5 $18) 12. Nxg6 {[%emt 0:06:56] The position is equal.} hxg6 {[%emt 0:01:20]} 13. Rd1 {[%emt 0:01:20]} Rfd8 {[%emt 0:06:53]} 14. g5 {[%emt 0:16:25]} Ne8 {[%emt 0:01:37]} 15. e4 {[%emt 0:00:16]} dxc4 {[%emt 0:06:42]} 16. Qxc4 {[%emt 0:00:13]} e5 {[%emt 0:02:42]} 17. d5 {[%emt 0:10:17]} Bc5 {[%emt 0:01:27]} 18. Qe2 {[%emt 0:09:25]} Bd4 {[%emt 0:03:52]} 19. dxc6 {[%emt 0:03:37]} bxc6 {[%emt 0:01:04]} 20. Be3 {[%emt 0:00:06]} Nc5 {[%emt 0:02:51] Inhibits Na4.} 21. Rac1 {[%emt 0:15:57]} Nc7 {[%emt 0:08:52]} 22. Bxd4 {[%emt 0:03:26]} ({White should play} 22. h4 $15) 22... exd4 {[%emt 0:04:05]} 23. Nb1 {[%emt 0:00:07]} N7e6 {[%emt 0:03:26][%cal Oe6f4]} 24. Qd2 {[%emt 0:01:11]} d3 {[%emt 0:06:43]} 25. Rc4 {[%emt 0:00:16]} Rd4 $36 {[%emt 0:03:01][%mdl 2048] Black has strong initiative.} 26. Na3 {[%emt 0:03:08]} Rad8 {[%emt 0:01:46]} 27. Rdc1 {[%emt 0:07:34]} (27. b3 $17) 27... a5 $19 {[%emt 0:06:10]} 28. Kh1 {[%emt 0:00:00]} a4 {[%emt 0:04:34]} 29. f4 {[%emt 0:00:00]} Rxc4 {[%emt 0:03:36]} 30. Nxc4 {[%emt 0:00:00]} Qc7 {[%emt 0:00:40]} 31. Ne5 {[%emt 0:00:00]} (31. e5 $17 {is a better defense.}) 31... Rd4 {[%emt 0:03:03]} 32. Qe3 {[%emt 0:00:00]} Qd6 {[%emt 0:03:34][%cal Oe6g5]} 33. Rd1 {[%emt 0:00:00]} Rb4 $1 {[%emt 0:03:32]} 34. h4 $2 {[%emt 0:01:05]} (34. Rc1) 34... Rxb2 {[%emt 0:03:15]} 35. Nc4 {[%emt 0:00:27]} Re2 {[%emt 0:00:54]} (35... Qxf4 $2 36. Qxf4 Nxf4 37. Nxb2 $18) 36. Nxd6 {[%emt 0:00:03]} Rxe3 {[%emt 0:00:06]} 37. f5 {[%emt 0:00:22]} Nf4 {[%emt 0:02:42]} 38. Rb1 {[%emt 0:00:26]} (38. a3 $142) 38... Nd7 {[%emt 0:03:01] Excellent horsemanship.} (38... d2 $142 {( -> ...Re1+)} 39. Kh2 Re2) 39. Nc4 {[%emt 0:00:16]} Re2 {[%emt 0:01:07]} 40. Bf3 {[%emt 0:01:53]} Rf2 {[%emt 0:01:53]} 41. Bg4 {[%emt 0:01:33]} Rg2 {[%emt 0:07:49]} (41... Rxa2 42. fxg6 Nf8 (42... Rc2 43. Ne5 $17) 43. gxf7+ Kxf7 44. Rf1 $17) (41... gxf5 $142 42. exf5 Nd5 (42... Rxa2 $2 43. g6 $19)) 42. Rg1 $2 {[%emt 0:03:48]} (42. Ne3 {is the only way for White.} Rg3 (42... Rxa2 $2 43. fxg6 Nxg6 44. Bxd7 $19) 43. fxg6 Rxe3 44. Bxd7 Nxg6 45. Bxc6) 42... Rc2 {[%emt 0:03:53]} 43. Ne3 {[%emt 0:01:03]} Rb2 {[%emt 0:10:37]} (43... Rxa2 $19 {is more deadly.} 44. fxg6 Nxg6 (44... Ne5 $2 45. gxf7+ Kf8 46. h5 $19) 45. Bxd7 Ne5 (45... Nxh4 46. Bg4 $17)) 44. fxg6 $17 {[%emt 0:01:46] Black is clearly better.} Ne5 {[%emt 0:01:23]} (44... Nxg6 $17 45. Bxd7 Ne5) 45. gxf7+ $19 {[%emt 0:00:41] [#]} Kf8 $1 {[%emt 0:01:17]} (45... Kxf7 46. Rf1 Nxg4 (46... Neg6 $2 47. h5 $18) 47. Rxf4+ (47. Nxg4 Ke6 $14) 47... Ke6 48. Nxg4 $11) 46. h5 {[%emt 0:07:39] [#]} (46. Rf1 $17 Nxg4 47. Nxg4) 46... Ne2 $1 {[%emt 0:01:37] Weighted Error Value: White=0.37/Black=0.32.  Missed win:     	---       	Black=1      Mistake:       	White=7     	Black=3      Inaccurate:     	White=2     	---        OK:         	White=17    	Black=19     Best:        	White=3     	Black=2      Strong:       	---       	Black=2} ({Not} 46... Kxf7 47. Rf1 Nxg4 48. Rxf4+ Ke6 49. Rxg4 $18 (49. Nxg4 Re2 $16)) (46... Nxf7 47. Rf1 Ne2 48. Rf3 $11) (46... Rxa2 47. h6 a3 (47... Kxf7 48. h7 $11) (47... Nxf7 48. Rf1 $11) 48. h7 $17) 1/2-1/2

[Event "Fagernes Chess GM-Swiss 2024"]
[Site "Fagernes"]
[Date "2024.03.27"]
[Round "5.6"]
[White "Kulaots, Kaido"]
[Black "Elmi, Saad Abobaker"]
[Result "1-0"]
[ECO "C70"]
[WhiteElo "2534"]
[BlackElo "2344"]
[Annotator "TA"]
[PlyCount "79"]
[EventDate "2024.03.25"]
[EventType "swiss"]
[EventCountry "NOR"]
[SourceTitle "playchess.com"]
[Source "ChessBase"]
[SourceQuality "1"]
[TimeControl "40/6000+30:2400+30"]

{[%evp 9,79,38,41,41,39,41,37,26,31,1,19,7,58,64,56,51,79,20,25,21,22,20,49,53,56,27,66,73,82,81,66,35,147,138,170,153,168,156,189,167,173,178,259,268,224,158,264,182,272,275,270,106,116,0,0,0,475,501,450,519,512,508,496,562,535,516,548,551,535,547,555,554]} 1. e4 {[%emt 0:00:05]} e5 {[%emt 0:04:12]} 2. Nf3 {[%emt 0:00:17]} Nc6 {[%emt 0:00:31]} 3. Bb5 {[%emt 0:00:18]} a6 {[%emt 0:00:09]} 4. Ba4 {[%emt 0:00:10]} g6 {[%emt 0:02:08]} 5. c3 {[%emt 0:04:24]} Bg7 {[%emt 0:00:10]} 6. d4 {[%emt 0:00:14]} exd4 {[%emt 0:00:26]} 7. cxd4 {[%emt 0:00:27]} b5 {[%emt 0:02:36]} 8. Bb3 {[%emt 0:02:48] White is slightly better.} d6 {[%emt 0:06:01]} 9. a3 {[%emt 0:53:17]} Bg4 {[%emt 0:08:53]} 10. Be3 {[%emt 0:07:14]} Bxf3 {[%emt 0:08:15]} (10... Qd7 $11) 11. Qxf3 $14 {[%emt 0:00:24]} Qf6 {[%emt 0:00:47]} 12. Nd2 {[%emt 0:03:02]} Na5 {[%emt 0:16:51]} 13. Bd5 {[%emt 0:07:12]} (13. Bd1 $16) 13... Qxf3 $1 $11 {[%emt 0:03:38]} 14. Nxf3 {[%emt 0:02:53]} c6 {[%emt 0:00:23]} 15. Ba2 {[%emt 0:00:24]} Nf6 {[%emt 0:00:44]} 16. e5 $36 {[%emt 0:04:38][%mdl 2048] Black is under pressure.} Nd5 {[%emt 0:08:26]} 17. Bd2 {[%emt 0:02:17]} Nb7 {[%emt 0:01:27]} 18. O-O {[%emt 0:01:29]} Kd7 {[%emt 0:03:03]} 19. Rac1 {[%emt 0:00:51]} Rac8 {[%emt 0:00:43]} 20. Rc2 {[%emt 0:00:38]} Rhe8 {[%emt 0:00:59]} (20... f6 $14) 21. Rfc1 $16 {[%emt 0:00:55]} a5 {[%emt 0:04:27]} 22. h4 {[%emt 0:06:01]} h5 {[%emt 0:00:47]} 23. g3 {[%emt 0:01:12]} Rf8 {[%emt 0:01:46]} 24. Kg2 {[%emt 0:00:29]} Rfe8 {[%emt 0:02:09]} 25. Bb3 {[%emt 0:01:53][%cal Ba2b3,Bb3c4,Bc4d3][%mdl 32]} Rf8 {[%emt 0:00:37]} (25... a4 $142 26. Ba2 Rg8) 26. a4 $18 {[%emt 0:01:02] Hoping for axb5.} b4 {[%emt 0:00:19]} 27. Bc4 {[%emt 0:01:34]} Nc7 {[%emt 0:00:47]} (27... Ne7 $16 {was necessary.} 28. Ba6 Rc7 29. exd6 Nxd6 30. Ne5+ Bxe5 31. dxe5 Ndf5) 28. Bd3 {[%emt 0:01:45]} Nd8 {[%emt 0:05:53]} (28... Nd5 $142 29. Ba6 Rc7 30. Bxb7 Rxb7) 29. exd6 {[%emt 0:01:28]} Nd5 {[%emt 0:00:25]} 30. Rc5 $2 {[%emt 0:03:22]} (30. Ne5+ $18 Bxe5 31. dxe5) 30... Nb7 $16 {[%emt 0:00:25] [#]} 31. Rxd5 {[%emt 0:01:16]} cxd5 $11 {[%emt 0:00:43]} 32. Bb5+ {[%emt 0:00:01]} Kxd6 $2 {[%emt 0:00:38][%mdl 8192]} (32... Kd8 $1 $11 33. Rxc8+ (33. Bg5+ f6 $11) 33... Kxc8) 33. Bf4+ $18 {[%emt 0:00:53] A strong pair of Bishops. White is clearly winning.} Ke7 {[%emt 0:00:06] [#] Strongly threatening ...Rxc1.} 34. Re1+ {[%emt 0:00:18]} Kd8 {[%emt 0:00:42]} 35. Ba6 {[%emt 0:02:03]} Nc5 {[%emt 0:00:57]} 36. dxc5 {[%emt 0:00:19]} ({Don't take} 36. Bxc8 Nd3 $18) 36... Rxc5 {[%emt 0:01:38]} 37. Bd6 {[%emt 0:00:23][%csl LRc5,LRf8]} Rc6 {[%emt 0:00:08]} 38. Bxf8 {[%emt 0:00:09]} Bxf8 {[%emt 0:00:07]} 39. Bb5 {[%emt 0:00:07]} Re6 {[%emt 0:00:09]} 40. Rd1 {[%emt 0:00:30] Weighted Error Value: White=0.23 (precise) /Black=0.37.  Loses game:     	---       	Black=1      Missed win:     	White=1     	---        Mistake:       	White=2     	Black=5      Inaccurate:     	White=4     	Black=3      OK:         	White=15    	Black=9      Best:        	White=5     	Black=4      Strong:       	---       	Black=1} 1-0

[Event "Fagernes Chess GM-Swiss 2024"]
[Site "Fagernes"]
[Date "2024.03.27"]
[Round "5.7"]
[White "Willow, Jonah B"]
[Black "Raja Rithvik R"]
[Result "1/2-1/2"]
[ECO "B90"]
[WhiteElo "2446"]
[BlackElo "2532"]
[Annotator "TA"]
[PlyCount "30"]
[EventDate "2024.03.25"]
[EventType "swiss"]
[EventCountry "NOR"]
[SourceTitle "playchess.com"]
[Source "ChessBase"]
[SourceQuality "1"]
[TimeControl "40/6000+30:2400+30"]

{[%evp 14,30,0,18,0,9,0,10,10,0,16,14,24,0,0,8,9,0,0]} 1. e4 {[%emt 0:03:42]} c5 {[%emt 0:00:45]} 2. Nf3 {[%emt 0:00:07]} d6 {[%emt 0:00:11]} 3. d4 {[%emt 0:00:16]} cxd4 {[%emt 0:00:05]} 4. Nxd4 {[%emt 0:00:04]} Nf6 {[%emt 0:00:04]} 5. Nc3 {[%emt 0:00:05]} a6 {[%emt 0:00:04]} 6. a4 {[%emt 0:00:51]} e5 {[%emt 0:00:35]} 7. Nf3 {[%emt 0:00:21]} Be7 {[%emt 0:06:28]} 8. Bg5 {[%emt 0:00:18]} Be6 {[%emt 0:03:04] Against Bc4} 9. Bxf6 {[%emt 0:00:25]} Bxf6 {[%emt 0:00:04]} 10. Nd5 {[%emt 0:00:06] Dodges Qb6} Nd7 {[%emt 0:00:03]} 11. Bc4 {[%emt 0:00:20][%cal Bf1c4,Bc4a2,Ba2d5][%mdl 32]} O-O {[%emt 0:00:23][%cal Ob7b5]} 12. O-O {[%emt 0:00:12]} Rc8 {[%emt 0:01:54]} 13. Ba2 {[%emt 0:00:09][%cal Oa4a5]} Nb6 {[%emt 0:07:29] The position is equal.} 14. c3 {[%emt 0:00:44]} Nxd5 {[%emt 0:00:56]} 15. Bxd5 {[%emt 0:00:08]} Qb6 {[%emt 0:03:11] An uneventful encounter.   Weighted Error Value: White=0.04 (flawless) /Black=0.03 (flawless) .  OK:         	White=5     	Black=3      Best:        	---       	Black=1} 1/2-1/2